bitfinex/quotes_BTCUSD_20251114
["timestamp","ask_amount","ask_price","bid_price","bid_amount"]
[1763121600689,0.20789088,96205.0,96200.0,0.20789987]
[1763121600888,0.04716,96200.0,96199.0,0.068]
[1763121601550,0.20790669,96197.0,96196.0,4.549e-05]
[1763121601769,0.0272,96197.0,96159.0,0.09294592]
[1763121601980,0.0272,96197.0,96161.0,0.20798452]
[1763121601981,0.0272,96171.0,96161.0,0.20798452]
[1763121602189,0.01996,96166.0,96160.0,0.068]
[1763121602405,0.01996,96166.0,96160.0,0.27598662]
[1763121602625,0.01996,96166.0,96160.0,0.068]
[1763121602626,0.0272,96161.0,96160.0,0.068]
[1763121603295,0.0272,96161.0,96151.0,0.068]
[1763121603560,0.01996,96166.0,96151.0,0.068]
[1763121603561,0.20800248,96153.0,96151.0,0.068]
[1763121603774,0.20800248,96153.0,96131.0,0.09294592]
[1763121603775,0.20800615,96151.0,96131.0,0.09294592]
[1763121603981,0.0272,96150.0,96142.0,0.20802547]
[1763121604188,0.0272,96150.0,96136.0,0.068]
[1763121604600,0.0272,96150.0,96145.0,0.2080182]
[1763121604841,0.0272,96150.0,96145.0,0.20801905]
[1763121605048,0.23520832,96150.0,96143.0,0.20802311]
[1763121605253,0.23520832,96150.0,96136.0,0.068]
[1763121605677,0.23620832,96150.0,96136.0,0.068]
[1763121605890,0.23620832,96150.0,96143.0,0.2080224]
[1763121606132,0.001,96150.0,96148.0,0.20801116]
[1763121606347,0.001,96150.0,96148.0,0.27601116]
[1763121606348,0.002,96150.0,96148.0,0.27601116]
[1763121607423,0.01996,96180.0,96165.0,0.20797587]
[1763121607634,0.02009626,96180.0,96178.0,0.20794686]
[1763121608485,0.02596,96179.0,96178.0,0.20794686]
[1763121608923,0.02209626,96180.0,96178.0,0.20794686]
[1763121609131,0.00313626,96180.0,96178.0,0.20794686]
[1763121609338,0.00313626,96180.0,96177.0,0.20794857]
[1763121609568,0.00313626,96180.0,96178.0,0.20794568]
[1763121609795,0.02596,96178.0,96150.0,0.5659868]
[1763121610080,0.02596,96172.0,96163.0,0.09294592]
[1763121610455,0.02596,96172.0,96151.0,0.323]
[1763121610456,0.02596,96172.0,96164.0,0.09294592]
[1763121610656,0.0211,96171.0,96170.0,0.20796439]
[1763121612509,0.0221,96171.0,96144.0,0.09294592]
[1763121612666,0.20797475,96166.0,96161.0,0.09294592]
[1763121613050,0.06481,96171.0,96150.0,0.20800832]
[1763121613051,0.23394333,96162.0,96150.0,0.20800832]
[1763121613403,0.0211,96157.0,96144.0,0.09294592]
[1763121613599,0.20800546,96152.0,96146.0,0.20801642]
[1763121613827,0.20800546,96152.0,96144.0,0.09294592]
[1763121613828,0.20800223,96153.0,96144.0,0.30096617]
[1763121614226,0.20799966,96154.0,96148.0,0.20801058]
[1763121614426,0.0211,96157.0,96148.0,0.20801058]
[1763121614648,0.22909448,96157.0,96152.0,0.20800399]
[1763121614858,0.0211,96157.0,96152.0,0.20800399]
[1763121615098,0.0211,96163.0,96144.0,0.09294592]
[1763121615280,0.20798435,96162.0,96150.0,0.20800832]
[1763121615474,0.0211,96163.0,96150.0,0.20800832]
[1763121615475,0.20798452,96161.0,96150.0,0.20800832]
[1763121615628,0.2079911,96158.0,96154.0,0.20799957]
[1763121616240,0.04171,96179.0,96149.0,0.00012]
[1763121616468,0.04171,96179.0,96169.0,0.20796681]
[1763121616469,0.20795278,96176.0,96169.0,0.20796681]
[1763121616690,0.04171,96179.0,96169.0,0.20796681]
[1763121617067,0.24965641,96179.0,96169.0,0.20796681]
[1763121617270,0.04171,96179.0,96169.0,0.20796681]
[1763121617893,0.00013626,96180.0,96178.0,0.20794735]
[1763121618407,0.02596,96179.0,96178.0,0.20794735]
[1763121619325,0.00113626,96180.0,96178.0,0.20794735]
[1763121619527,0.00113626,96180.0,96179.0,0.41594592]
[1763121620274,0.00013626,96180.0,96179.0,0.41594592]
[1763121620888,0.00113626,96180.0,96179.0,0.41594592]
[1763121621291,0.00013626,96180.0,96179.0,0.41594592]
[1763121621515,0.00013626,96180.0,96179.0,0.41694592]
[1763121621712,0.00013626,96180.0,96179.0,0.09494592]
[1763121621915,0.00013626,96180.0,96179.0,0.09394592]
[1763121622320,0.00013626,96180.0,96179.0,0.09294592]
[1763121622994,0.02609626,96180.0,96179.0,0.09294592]
[1763121623128,0.02609626,96180.0,96165.0,0.20797587]
[1763121623329,0.02609626,96180.0,96150.0,0.03040041]
[1763121623330,0.02609626,96180.0,96151.0,0.323]
[1763121623529,0.02609626,96180.0,96140.0,0.02619935]
[1763121623530,0.02596,96165.0,96140.0,0.01040149]
[1763121623738,0.0211,96150.0,96140.0,0.01040149]
[1763121623935,0.25506832,96150.0,96149.0,0.06812]
[1763121624744,0.25506832,96150.0,96149.0,0.00012]
[1763121625213,0.04706,96150.0,96149.0,0.00012]
[1763121625394,0.0211,96150.0,96149.0,0.00012]
[1763121625593,0.0211,96150.0,96149.0,0.09306592]
[1763121625790,0.0211,96150.0,96149.0,0.00012]
[1763121626192,0.22910832,96150.0,96149.0,0.00012]
[1763121626451,0.25506832,96150.0,96149.0,0.00012]
[1763121626654,0.25706832,96150.0,96149.0,0.00012]
[1763121626835,0.04806,96150.0,96149.0,0.00012]
[1763121627363,0.04706,96150.0,96149.0,0.00012]
[1763121628506,0.17838547,96150.0,96149.0,0.00012]
[1763121628855,0.52152235,96150.0,96149.0,0.00012]
[1763121629837,0.52052235,96150.0,96149.0,0.00012]
[1763121630038,0.52152235,96150.0,96149.0,0.00012]
[1763121630246,0.52152235,96150.0,96110.0,0.0004]
[1763121630247,0.01040149,96140.0,96110.0,0.0004]
[1763121630457,0.25411272,96111.0,96110.0,0.00085505]
[1763121630662,0.04602,96111.0,96110.0,0.00085505]
[1763121634415,0.20808032,96118.0,96110.0,0.00085505]
[1763121634416,0.01928,96121.0,96110.0,0.00085505]
[1763121634583,0.01928,96121.0,96119.0,0.20807449]
[1763121634783,0.01040149,96140.0,96129.0,0.20805376]
[1763121635004,0.01040149,96140.0,96111.0,0.20809272]
[1763121635005,0.20805379,96129.0,96111.0,0.20809272]
[1763121635360,0.06089,96138.0,96110.0,0.00085505]
[1763121635361,0.20806879,96123.0,96110.0,0.00085505]
[1763121635547,0.06089,96138.0,96124.0,0.20806314]
[1763121635548,0.20804992,96131.0,96124.0,0.20806314]
[1763121635735,0.20804555,96133.0,96126.0,0.20806025]
[1763121635954,0.20805086,96131.0,96126.0,0.20805998]
[1763121636085,0.02674,96127.0,96120.0,0.20807259]
[1763121636284,0.02674,96127.0,96122.0,0.20806801]
[1763121636285,0.02674,96125.0,96122.0,0.20806801]
[1763121636485,0.02674,96125.0,96090.0,0.03040691]
[1763121636686,0.02674,96125.0,96110.0,0.00085505]
[1763121636687,0.20807973,96117.0,96110.0,0.00085505]
[1763121636900,0.20808491,96115.0,96110.0,0.00085505]
[1763121637300,0.20808762,96114.0,96110.0,0.00085505]
[1763121637501,0.01928,96118.0,96116.0,0.20808031]
[1763121637710,0.01928,96118.0,96117.0,0.09294592]
[1763121637905,0.323,96149.0,96117.0,0.09294592]
[1763121637906,0.01928,96128.0,96117.0,0.09294592]
[1763121638114,0.0211,96150.0,96118.0,0.55558639]
[1763121638317,0.27071879,96150.0,96131.0,0.20804734]
[1763121638514,0.20803962,96136.0,96132.0,0.20804553]
[1763121638788,0.20803706,96137.0,96133.0,0.20804432]
[1763121639068,0.2080292,96141.0,96136.0,0.20803775]
[1763121639274,0.20803139,96140.0,96136.0,0.20803775]
[1763121639584,0.20803139,96140.0,96136.0,0.20803797]
[1763121639924,0.001,96137.0,96134.0,0.20803854]
[1763121640120,0.20805529,96129.0,96123.0,0.20806583]
[1763121640398,0.20805529,96129.0,96126.0,0.20805961]
[1763121640595,0.20803861,96139.0,96111.0,0.323]
[1763121640596,0.02028,96138.0,96111.0,0.323]
[1763121640797,0.22931512,96138.0,96111.0,0.323]
[1763121640992,0.02028,96138.0,96114.0,0.20807757]
[1763121641177,0.2080369,96137.0,96133.0,0.20804425]
[1763121641389,0.20804168,96135.0,96111.0,0.323]
[1763121641624,0.20804441,96134.0,96130.0,0.20804947]
[1763121642041,0.01928,96138.0,96111.0,0.323]
[1763121642243,0.2080413,96135.0,96131.0,0.20804899]
[1763121642553,0.20805174,96130.0,96124.0,0.20806299]
[1763121642725,0.20805511,96129.0,96124.0,0.20806299]
[1763121642938,0.02674,96125.0,96110.0,0.00085505]
[1763121643149,0.04161,96137.0,96110.0,0.00085505]
[1763121643150,0.01928,96111.0,96110.0,0.00085505]
[1763121643523,0.04602,96111.0,96110.0,0.00085505]
[1763121644140,0.04602,96111.0,96110.0,0.00185505]
[1763121644549,0.04602,96111.0,96110.0,0.00085505]
[1763121645172,0.20805636,96128.0,96110.0,0.00085505]
[1763121645417,0.59708679,96150.0,96110.0,0.00085505]
[1763121645418,0.01928,96120.0,96110.0,0.00085505]
[1763121645603,0.01928,96120.0,96114.0,0.20808554]
[1763121645813,0.2080799,96117.0,96114.0,0.20808554]
[1763121646015,0.20809071,96112.0,96110.0,0.00085505]
[1763121646211,0.02674,96111.0,96110.0,0.00089505]
[1763121646951,0.02674,96111.0,96110.0,0.00093505]
[1763121647277,0.02674,96111.0,96110.0,0.00097505]
[1763121648405,0.02674,96111.0,96110.0,0.20906994]
[1763121648620,0.23483272,96111.0,96110.0,0.00097505]
[1763121649803,0.02674,96111.0,96110.0,0.00097505]
[1763121650004,0.23483272,96111.0,96110.0,0.00097505]
[1763121650715,0.25411272,96111.0,96110.0,0.00097505]
[1763121650916,0.04602,96111.0,96110.0,0.00097505]
[1763121651403,0.25411272,96111.0,96110.0,0.00097505]
[1763121652411,0.25411272,96111.0,96071.0,0.20817908]
[1763121652543,0.25411272,96111.0,96100.0,0.00021644]
[1763121652544,0.25413437,96101.0,96100.0,0.00021644]
[1763121653168,0.27329564,96101.0,96100.0,0.00021644]
[1763121653806,0.27429564,96101.0,96100.0,0.00021644]
[1763121654014,0.06618127,96101.0,96100.0,0.00021644]
[1763121654218,0.04702,96101.0,96100.0,0.00021644]
[1763121654433,0.25513437,96101.0,96100.0,0.00021644]
[1763121655474,0.04702,96101.0,96100.0,0.00021644]
[1763121655711,0.04802,96101.0,96100.0,0.00021644]
[1763121656336,0.04702,96101.0,96100.0,0.00021644]
[1763121656588,0.04602,96101.0,96100.0,0.00021644]
[1763121656807,0.04702,96101.0,96100.0,0.00021644]
[1763121657006,0.04802,96101.0,96100.0,0.00021644]
[1763121657908,0.20810938,96104.0,96100.0,0.20833129]
[1763121658052,0.02674,96101.0,96100.0,0.20833129]
[1763121658876,0.02674,96101.0,96100.0,0.00021644]
[1763121659463,0.02674,96101.0,96100.0,0.20833298]
[1763121659669,0.02774,96101.0,96100.0,0.20833298]
[1763121659865,0.02874,96101.0,96100.0,0.20833298]
[1763121660074,0.02874,96101.0,96100.0,0.00021644]
[1763121660287,0.23685437,96101.0,96100.0,0.00021644]
[1763121661080,0.23685437,96101.0,96100.0,0.20833298]
[1763121661081,0.002,96101.0,96100.0,0.20833298]
[1763121661266,0.002,96101.0,96100.0,0.00021644]
[1763121661473,0.002,96101.0,96100.0,0.20833298]
[1763121662056,0.0193,96116.0,96101.0,0.20811437]
[1763121662254,0.20809272,96111.0,96101.0,0.20811437]
[1763121662458,0.20809272,96111.0,96100.0,0.00021644]
[1763121662459,0.20808406,96115.0,96111.0,0.20809206]
[1763121662824,0.02455,96112.0,96111.0,0.20809206]
[1763121663250,0.20809984,96108.0,96101.0,0.001]
[1763121663452,0.20810855,96104.0,96101.0,0.001]
[1763121663647,0.20809489,96110.0,96107.0,0.20810108]
[1763121663847,0.03615,96115.0,96101.0,0.20811437]
[1763121664074,0.2080911,96112.0,96100.0,0.00021644]
[1763121664283,0.03615,96115.0,96100.0,0.00021644]
[1763121664453,0.0193,96116.0,96114.0,0.20808623]
[1763121664680,0.0193,96116.0,96115.0,0.20808406]
[1763121665069,0.0193,96116.0,96110.0,0.20809489]
[1763121665070,0.20805932,96127.0,96110.0,0.20809489]
[1763121665071,0.01928,96138.0,96110.0,0.35340474]
[1763121665294,0.03615,96137.0,96100.0,0.58620865]
[1763121665467,0.03615,96137.0,96101.0,0.323]
[1763121665680,0.2080606,96126.0,96114.0,0.20808409]
[1763121665875,0.03615,96137.0,96114.0,0.20808559]
[1763121665876,0.001,96116.0,96114.0,0.20808559]
[1763121666075,0.0193,96115.0,96114.0,0.20808559]
[1763121666277,0.0193,96115.0,96110.0,0.20809354]
[1763121666278,0.04385,96115.0,96110.0,0.20809354]
[1763121666482,0.02455,96114.0,96112.0,0.20808923]
[1763121666684,0.02455,96113.0,96112.0,0.20808904]
[1763121667001,0.23263841,96113.0,96109.0,0.2080955]
[1763121667196,0.02455,96112.0,96111.0,0.20809195]
[1763121667767,0.02455,96112.0,96108.0,0.20809909]
[1763121667967,0.02539,96109.0,96107.0,0.20810087]
[1763121669033,0.02539,96109.0,96108.0,0.20809922]
[1763121669235,0.02639,96109.0,96108.0,0.20809922]
[1763121669785,0.02539,96109.0,96103.0,0.2081011]
[1763121669992,0.01874,96117.0,96100.0,0.01062226]
[1763121670195,0.01874,96117.0,96100.0,0.00021644]
[1763121670196,0.23350437,96101.0,96100.0,0.00021644]
[1763121671199,0.23350437,96101.0,96060.0,0.79606756]
[1763121671200,0.23350437,96101.0,96060.0,0.0004]
[1763121671201,0.04341874,96099.0,96060.0,0.0004]
[1763121671350,0.01874,96061.0,96060.0,0.20873874]
[1763121671996,0.04413,96061.0,96060.0,0.00053655]
[1763121672197,0.11217,96061.0,96060.0,0.00053655]
[1763121672750,0.11217,96061.0,96060.0,0.00153655]
[1763121672952,0.11217,96061.0,96060.0,0.00253655]
[1763121673981,0.11217,96061.0,96060.0,0.00053655]
[1763121674188,0.23026443,96061.0,96060.0,0.00053655]
[1763121674500,0.23126443,96061.0,96060.0,0.00053655]
[1763121674720,0.57338502,96061.0,96060.0,0.00053655]
[1763121675401,0.54799502,96061.0,96040.0,0.0004]
[1763121675653,0.54799502,96061.0,95984.0,0.07449609]
[1763121675655,0.20830946,96011.0,96010.0,0.0004]
[1763121675885,0.20830946,96011.0,96010.0,0.00085587]
[1763121675886,0.01874,96011.0,96010.0,0.00085587]
[1763121676092,0.03931,96022.0,96010.0,0.00085587]
[1763121676316,0.2270074,96031.0,96017.0,0.20829531]
[1763121676317,0.01874,96019.0,96017.0,0.20829531]
[1763121676546,0.03931,96030.0,96010.0,0.38012001]
[1763121676547,0.24757916,96030.0,96010.0,0.00085587]
[1763121676774,0.23369946,96011.0,96010.0,0.00085587]
[1763121677199,0.02539,96011.0,96010.0,0.00085587]
[1763121679421,0.03931,96019.0,96011.0,0.20830946]
[1763121679625,0.06804,96016.0,96011.0,0.20830946]
[1763121680018,0.27634078,96016.0,96010.0,0.00085587]
[1763121680232,0.02539,96012.0,96010.0,0.00085587]
[1763121680433,0.02539,96011.0,96010.0,0.00085587]
[1763121681758,0.02539,96011.0,95980.0,0.01041883]
[1763121681759,0.02539,96011.0,95986.0,0.01037618]
[1763121681760,0.20834381,95996.0,95986.0,0.01037618]
[1763121681980,0.20833841,95998.0,95986.0,0.01051275]
[1763121682239,0.01062639,96017.0,95986.0,0.01051275]
[1763121682240,0.2083548,95991.0,95986.0,0.01051275]
[1763121682461,0.01874,95987.0,95986.0,0.01051275]
[1763121683343,0.04413,95987.0,95986.0,0.01051275]
[1763121683549,0.25249154,95987.0,95986.0,0.01051275]
[1763121683706,0.25249154,95987.0,95986.0,0.00013657]
[1763121684310,0.57549154,95987.0,95986.0,0.00013657]
[1763121684519,0.25249154,95987.0,95986.0,0.00013657]
[1763121684721,0.11221,95987.0,95986.0,0.00013657]
[1763121687433,0.04513,95987.0,95986.0,0.00013657]
[1763121687632,0.08782,95987.0,95986.0,0.00013657]
[1763121687832,0.08782,95987.0,95986.0,0.20850028]
[1763121688034,0.01974,95987.0,95986.0,0.20850028]
[1763121688236,0.002,95987.0,95986.0,0.21887646]
[1763121688624,0.001,95987.0,95986.0,0.21887646]
[1763121688836,0.01041558,96010.0,95986.0,0.21887646]
[1763121688837,0.01874,96011.0,95986.0,0.01051275]
[1763121689069,0.01874,96011.0,96009.0,0.20831347]
[1763121689269,0.01874,96018.0,96016.0,0.20829649]
[1763121689683,0.01874,96018.0,96009.0,0.01037618]
[1763121689905,0.01874,96018.0,96016.0,0.20829826]
[1763121690259,0.01874,96018.0,96009.0,0.01037618]
[1763121690260,0.22703594,96018.0,96009.0,0.01037618]
[1763121690461,0.02345,96010.0,96009.0,0.01051275]
[1763121690855,0.02345,96010.0,96009.0,0.00013657]
[1763121691721,0.02445,96010.0,96009.0,0.00013657]
[1763121695760,0.001,96010.0,96009.0,0.00013657]
[1763121696583,0.20829992,96016.0,96010.0,0.20831163]
[1763121696795,0.323,96029.0,96009.0,0.00013657]
[1763121696796,0.05451,96031.0,96009.0,0.00013657]
[1763121697013,0.01874,96031.0,96012.0,0.09294592]
[1763121697169,0.03577,96046.0,96020.0,0.58755191]
[1763121697369,0.20823609,96045.0,96020.0,0.40005481]
[1763121697597,0.20827149,96029.0,96020.0,0.01037618]
[1763121697824,0.03577,96040.0,96020.0,0.01037618]
[1763121697825,0.24401873,96040.0,96020.0,0.01037618]
[1763121697965,0.24401873,96040.0,96026.0,0.20827635]
[1763121697966,0.01822,96028.0,96026.0,0.20827635]
[1763121698170,0.20823907,96044.0,96037.0,0.20825095]
[1763121698367,0.20823442,96046.0,96038.0,0.20825046]
[1763121698568,0.20825325,96038.0,96035.0,0.01037618]
[1763121698780,0.20825508,96037.0,96035.0,0.01037618]
[1763121699241,0.02345,96036.0,96035.0,0.01037618]
[1763121699643,0.02390402,96036.0,96035.0,0.01037618]
[1763121699852,0.00045402,96036.0,96035.0,0.01037618]
[1763121700252,0.02390402,96036.0,96035.0,0.01037618]
[1763121700654,0.00045402,96036.0,96035.0,0.21863358]
[1763121702642,0.00045402,96036.0,96035.0,0.54163358]
[1763121703757,0.00045402,96036.0,96035.0,0.01137618]
[1763121704176,0.02390402,96036.0,96035.0,0.001]
[1763121704796,0.00045402,96036.0,96035.0,0.001]
[1763121705000,0.02390402,96036.0,96035.0,0.001]
[1763121705977,0.04300104,96036.0,96035.0,0.001]
[1763121706188,0.20830526,96013.0,96007.0,0.20831635]
[1763121706389,0.20830983,96011.0,96006.0,0.2083203]
[1763121706592,0.20830983,96011.0,96002.0,0.208327]
[1763121706593,0.20832413,96005.0,95998.0,0.01037618]
[1763121706792,0.20832793,96003.0,95998.0,0.01037618]
[1763121707018,0.20832793,96003.0,95998.0,0.20833632]
[1763121707349,0.20832793,96003.0,95990.0,0.38968189]
[1763121707350,0.01822,96012.0,95990.0,0.38968189]
[1763121707486,0.01822,96012.0,96010.0,0.20831161]
[1763121707684,0.01822,96012.0,96010.0,0.00013657]
[1763121707889,0.01041341,96030.0,96010.0,0.00013657]
[1763121707890,0.01822,96020.0,96010.0,0.00013657]
[1763121708101,0.01822,96020.0,96018.0,0.20829424]
[1763121708312,0.01822,96020.0,96010.0,0.00013657]
[1763121708313,0.20829516,96018.0,96010.0,0.00013657]
[1763121708520,0.01822,96020.0,96017.0,0.208296]
[1763121708756,0.01822,96020.0,96019.0,0.2082921]
[1763121709199,0.01822,96020.0,96012.0,0.20830729]
[1763121709200,0.20829681,96017.0,96010.0,0.00013657]
[1763121709403,0.04167,96020.0,96010.0,0.00013657]
[1763121709672,0.04167,96020.0,96018.0,0.20829297]
[1763121709855,0.01822,96027.0,96022.0,0.20828352]
[1763121710516,0.22649672,96027.0,96022.0,0.20828352]
[1763121710954,0.20827817,96026.0,96022.0,0.20828352]
[1763121711273,0.20827817,96026.0,96021.0,0.20828756]
[1763121711619,0.20827692,96026.0,96016.0,0.01037618]
[1763121711820,0.02345,96017.0,96016.0,0.01037618]
[1763121712025,0.02345,96017.0,96010.0,0.00013657]
[1763121712224,0.02345,96017.0,96011.0,0.09294592]
[1763121712459,0.02345,96017.0,96014.0,0.2083011]
[1763121712860,0.02345,96017.0,96015.0,0.20829963]
[1763121713446,0.03577,96030.0,96011.0,0.09294592]
[1763121713662,0.20827213,96029.0,96024.0,0.20828065]
[1763121714077,0.35877,96041.0,96030.0,0.20826824]
[1763121714503,0.20826217,96033.0,96030.0,0.20826824]
[1763121714711,0.20826513,96032.0,96029.0,0.20826999]
[1763121714917,0.2082558,96036.0,96029.0,0.20826999]
[1763121715575,0.03577,96039.0,96029.0,0.20826999]
[1763121715777,0.03577,96039.0,96027.0,0.2082702]
[1763121715778,0.35877,96049.0,96038.0,0.20825052]
[1763121716108,0.20825955,96035.0,96031.0,0.20826495]
[1763121716278,0.20273957,96035.0,96031.0,0.20826495]
[1763121716644,0.03577,96047.0,96028.0,0.09294592]
[1763121716645,0.20823847,96044.0,96028.0,0.09294592]
[1763121716831,0.20824273,96042.0,96038.0,0.20824984]
[1763121717024,0.0191249,96041.0,96038.0,0.21862602]
[1763121717448,0.0191249,96041.0,96039.0,0.20824743]
[1763121717668,0.0191249,96040.0,96039.0,0.20824743]
[1763121717863,0.0191249,96040.0,96039.0,0.20824678]
[1763121718117,0.20824066,96043.0,96039.0,0.20824678]
[1763121718317,0.23169656,96040.0,96038.0,0.01037618]
[1763121718521,0.25083547,96039.0,96038.0,0.01037618]
[1763121718693,0.25084424,96039.0,96038.0,0.01037618]
[1763121718896,0.04259551,96039.0,96038.0,0.01037618]
[1763121719104,0.25084424,96039.0,96038.0,0.01037618]
[1763121720068,0.25084424,96039.0,96020.0,0.59796777]
[1763121720069,0.01041341,96030.0,96013.0,0.01037618]
[1763121720280,0.01822,96021.0,96005.0,0.30126623]
[1763121720487,0.03577,96038.0,96005.0,0.30126623]
[1763121720488,0.02205515,96037.0,96020.0,0.09294592]
[1763121720661,0.01041124,96050.0,96039.0,0.20824873]
[1763121720662,0.26473356,96050.0,96039.0,0.20824873]
[1763121720890,0.03445,96050.0,96039.0,0.20824873]
[1763121721061,0.24267526,96050.0,96039.0,0.20824873]
[1763121721279,0.20823728,96045.0,96034.0,0.20825532]
[1763121721486,0.20823783,96046.0,96039.0,0.20824873]
[1763121721691,0.20823451,96046.0,96039.0,0.20824873]
[1763121721847,0.03445,96050.0,96039.0,0.20824873]
[1763121722046,0.20823197,96047.0,96039.0,0.20824873]
[1763121722250,0.20823197,96047.0,96038.0,0.20825054]
[1763121722251,0.02453402,96040.0,96031.0,0.01037618]
[1763121722451,0.02408,96039.0,96031.0,0.01037618]
[1763121722678,0.2082509,96038.0,96031.0,0.2186421]
[1763121722872,0.20825561,96036.0,96033.0,0.20826117]
[1763121723076,0.02408,96039.0,96035.0,0.09294592]
[1763121723276,0.00045402,96040.0,96035.0,0.09294592]
[1763121723480,0.00045402,96040.0,96039.0,0.20824873]
[1763121724330,0.00045402,96040.0,96031.0,0.01037618]
[1763121724613,0.20828386,96023.0,96021.0,0.01037618]
[1763121724766,0.0418,96022.0,96021.0,0.01037618]
[1763121724977,0.0418,96022.0,96021.0,0.21866346]
[1763121725181,0.01772,96022.0,96021.0,0.21866346]
[1763121725748,0.01772,96022.0,96021.0,0.01037618]
[1763121725950,0.0418,96022.0,96021.0,0.01037618]
[1763121726363,0.20830729,96012.0,96011.0,0.01037618]
[1763121726712,0.23238729,96012.0,96011.0,0.01037618]
[1763121726880,0.23238729,96012.0,95990.0,0.01041775]
[1763121726881,0.20830946,96011.0,95995.0,0.01037618]
[1763121727083,0.20833632,95999.0,95995.0,0.21872024]
[1763121727286,0.03445,96011.0,95995.0,0.01037618]
[1763121727563,0.20833368,96000.0,95997.0,0.20833921]
[1763121727768,0.20833368,96000.0,95995.0,0.01037618]
[1763121727769,0.03445,96011.0,95995.0,0.01037618]
[1763121727887,0.20833572,95999.0,95995.0,0.01037618]
[1763121728084,0.20834018,95997.0,95995.0,0.01051275]
[1763121728297,0.20834018,95997.0,95995.0,0.00013657]
[1763121728298,0.04053,95996.0,95995.0,0.00013657]
[1763121728610,0.04053,95996.0,95960.0,0.37966414]
[1763121728611,0.04053,95996.0,95972.0,0.01037618]
[1763121728612,0.20839194,95973.0,95972.0,0.01037618]
[1763121728814,0.20839194,95973.0,95972.0,0.01051285]
[1763121729047,0.01816,95974.0,95972.0,0.01051285]
[1763121729248,0.01816,95996.0,95973.0,0.30133569]
[1763121729456,0.20833014,96002.0,95995.0,0.001]
[1763121729657,0.01816,95997.0,95995.0,0.001]
[1763121729859,0.01816,95997.0,95993.0,0.21872355]
[1763121729860,0.01816,95997.0,95993.0,0.20834744]
[1763121730077,0.20835175,95992.0,95984.0,0.20836789]
[1763121730237,0.01816,95997.0,95983.0,0.01037618]
[1763121730238,0.02237,95984.0,95983.0,0.01037618]
[1763121730444,0.02237,95984.0,95963.0,0.01037618]
[1763121730445,0.20839194,95973.0,95963.0,0.01037618]
[1763121730641,0.24892194,95973.0,95963.0,0.01037618]
[1763121730846,0.24892194,95973.0,95971.0,0.2083952]
[1763121730847,0.01816,95973.0,95971.0,0.2083952]
[1763121731149,0.01816,95981.0,95979.0,0.20837732]
[1763121732637,0.01816,95981.0,95972.0,0.00013667]
[1763121732638,0.20839184,95974.0,95972.0,0.00013667]
[1763121732846,0.02237,95973.0,95972.0,0.00013667]
[1763121734452,0.03592,95980.0,95972.0,0.00013667]
[1763121734632,0.03592,95980.0,95976.0,0.20838408]
[1763121735034,0.20837988,95979.0,95973.0,0.20839194]
[1763121735274,0.20839119,95974.0,95972.0,0.00013667]
[1763121735587,0.2083847,95977.0,95972.0,0.00013667]
[1763121735847,0.20838018,95979.0,95972.0,0.00013667]
[1763121736043,0.03592,95980.0,95972.0,0.00013667]
[1763121736200,0.02237,95973.0,95972.0,0.00013667]
[1763121736604,0.24428674,95985.0,95979.0,0.20837797]
[1763121736834,0.03592,95985.0,95979.0,0.20837797]
[1763121736995,0.02237,95980.0,95979.0,0.20837797]
[1763121737195,0.02237,95980.0,95977.0,0.20838232]
[1763121737433,0.02237,95980.0,95972.0,0.00013667]
[1763121737434,0.03592,95985.0,95942.0,0.2183287]
[1763121737435,0.20841737,95962.0,95942.0,0.2183287]
[1763121737639,0.04053,95961.0,95960.0,0.00053671]
[1763121738092,0.01816,95961.0,95960.0,0.00053671]
[1763121738440,0.226578,95961.0,95960.0,0.00053671]
[1763121738635,0.248948,95961.0,95960.0,0.00053671]
[1763121740703,0.01816,95961.0,95960.0,0.00053671]
[1763121740911,0.01816,95981.0,95960.0,0.00053671]
[1763121740912,0.20839957,95970.0,95960.0,0.00053671]
[1763121741112,0.20840393,95968.0,95963.0,0.20841281]
[1763121741337,0.01816,95971.0,95961.0,0.208418]
[1763121741648,0.01816,95971.0,95960.0,0.00053671]
[1763121741649,0.2084103,95965.0,95960.0,0.00053671]
[1763121741848,0.227578,95961.0,95960.0,0.00053671]
[1763121742072,0.226578,95961.0,95960.0,0.00053671]
[1763121742197,0.248948,95961.0,95960.0,0.00053671]
[1763121742399,0.226578,95961.0,95960.0,0.00053671]
[1763121742831,0.03592,95970.0,95960.0,0.00053671]
[1763121742832,0.323,95975.0,95960.0,0.00053671]
[1763121743039,0.01816,95961.0,95960.0,0.00053671]
[1763121743629,0.20841482,95963.0,95960.0,0.00053671]
[1763121743781,0.001,95968.0,95966.0,0.20840644]
[1763121743984,0.001,95968.0,95965.0,0.20840766]
[1763121744182,0.20840048,95970.0,95965.0,0.20840766]
[1763121744387,0.20840048,95970.0,95966.0,0.20840588]
[1763121744996,0.20840048,95970.0,95960.0,0.00053671]
[1763121744997,0.01816,95978.0,95967.0,0.00922]
[1763121745181,0.22654277,95978.0,95967.0,0.00922]
[1763121745520,0.20839047,95974.0,95970.0,0.20839767]
[1763121745662,0.20839239,95973.0,95967.0,0.00922]
[1763121745862,0.20840196,95969.0,95967.0,0.00922]
[1763121746362,0.01816,95978.0,95967.0,0.00922]
[1763121746823,0.01816,95978.0,95974.0,0.20838839]
[1763121746992,0.20838325,95977.0,95972.0,0.20839284]
[1763121747200,0.01816,95978.0,95971.0,0.20839515]
[1763121747621,0.01816,95978.0,95976.0,0.20838436]
[1763121748077,0.20838325,95977.0,95967.0,0.00922]
[1763121748325,0.20840269,95969.0,95967.0,0.00922]
[1763121748486,0.01816,95978.0,95960.0,0.76680524]
[1763121748487,0.20841583,95962.0,95960.0,0.00053671]
[1763121748661,0.04053,95961.0,95960.0,0.00053671]
[1763121750583,0.36353,95961.0,95960.0,0.00053671]
[1763121751166,0.36453,95961.0,95960.0,0.00053671]
[1763121751588,0.36553,95961.0,95960.0,0.00053671]
[1763121752410,0.44619493,95961.0,95960.0,0.00053671]
[1763121752590,0.46527977,95961.0,95960.0,0.00053671]
[1763121753176,0.46427977,95961.0,95960.0,0.00053671]
[1763121753380,0.46527977,95961.0,95960.0,0.00053671]
[1763121753777,0.36453,95961.0,95960.0,0.00053671]
[1763121753978,0.36453,95961.0,95960.0,0.20895688]
[1763121753979,0.01816,95961.0,95960.0,0.20895688]
[1763121754277,0.20839347,95973.0,95965.0,0.20840843]
[1763121754455,0.20838542,95976.0,95969.0,0.20840023]
[1763121754662,0.20838871,95975.0,95970.0,0.20839807]
[1763121754864,0.001,95961.0,95960.0,0.00053671]